fUSD/lending_fUSD_20250616
["ID","MTS","AMOUNT","RATE_DAILY","PERIOD"]
[366105577,1750066240925,-499.07,0.00016438,2]
[366105578,1750066240935,-490.0,0.00016438,2]
[366105579,1750066240944,-1018.64,0.00016438,2]
[366105580,1750066240954,-490.0,0.00016438,2]
[366105581,1750066240964,-496.01,0.00016438,2]
[366105582,1750066240974,-620.01,0.00016438,2]
[366105583,1750066240984,-490.0,0.00016438,2]
[366105584,1750066240994,-490.0,0.00016438,2]
[366105585,1750066241003,-490.0,0.00016438,2]
[366105586,1750066241012,-490.0,0.00016438,2]
[366105587,1750066241022,-571.34,0.00016438,2]
[366105588,1750066241032,-785.79,0.00016438,2]
[366105589,1750066241042,-490.0,0.00016438,2]
[366105590,1750066241052,-702.47,0.00016438,2]
[366105591,1750066241062,-532.58,0.00016438,2]
[366105592,1750066241071,-1281.08,0.00016438,2]
[366105593,1750066241083,-959.1,0.00016438,2]
[366105594,1750066241092,-1396.04,0.00016438,2]
[366105595,1750066241102,-1064.48,0.00016438,2]
[366105596,1750066241112,-490.0,0.00016438,2]
[366105597,1750066241122,-490.0,0.00016438,2]
[366105598,1750066241132,-490.0,0.00016438,2]
[366105599,1750066241142,-916.87,0.00016438,2]
[366105600,1750066241151,-490.0,0.00016438,2]
[366105601,1750066241161,-490.0,0.00016438,2]
[366105602,1750066241171,-490.0,0.00016438,2]
[366105603,1750066241181,-1216.36,0.00016438,2]
[366105604,1750066241191,-490.0,0.00016438,2]
[366105605,1750066241200,-490.0,0.00016438,2]
[366105606,1750066241210,-796.45,0.00016438,2]
[366105607,1750066241220,-646.79,0.00016438,2]
[366105608,1750066241231,-496.24,0.00016438,2]
[366105609,1750066241240,-490.0,0.00016438,2]
[366105610,1750066241249,-490.0,0.00016438,2]
[366105611,1750066241259,-490.0,0.00016438,2]
[366105612,1750066241268,-490.0,0.00016438,2]
[366105613,1750066241277,-844.73,0.00016438,2]
[366105614,1750066241287,-1192.81,0.00016438,2]
[366105615,1750066241296,-802.51,0.00016438,2]
[366105616,1750066241306,-580.63,0.00016438,2]
[366105617,1750066241315,-1070.06,0.00016438,2]
[366105618,1750066241325,-490.0,0.00016438,2]
[366105619,1750066241335,-490.0,0.00016438,2]
[366105620,1750066241608,-490.0,0.00016438,2]
[366105621,1750066241620,-683.34,0.00016438,2]
[366105622,1750066241631,-1016.09,0.00016438,2]
[366105623,1750066241642,-1032.26,0.00016438,2]
[366105624,1750066241652,-490.0,0.00016438,2]
[366105625,1750066241663,-766.21,0.00016438,2]
[366105626,1750066241673,-629.27,0.00016438,2]
[366105627,1750066241684,-1039.06,0.00016438,2]
[366105628,1750066241698,-490.0,0.00016438,2]
[366105629,1750066241708,-499.41,0.00016438,2]
[366105630,1750066241717,-517.92,0.00016438,2]
[366105631,1750066241727,-727.55,0.00016438,2]
[366105632,1750066241737,-490.0,0.00016438,2]
[366105633,1750066241747,-490.0,0.00016438,2]
[366105634,1750066241756,-555.47327732,0.00016438,2]
[366105635,1750066241765,-490.0,0.00016438,2]
[366105636,1750066241776,-766.16,0.00016438,2]
[366105637,1750066241786,-490.0,0.00016438,2]
[366105638,1750066241796,-490.0,0.00016438,2]
[366105639,1750066241806,-828.15,0.00016438,2]
[366105640,1750066241816,-490.0,0.00016438,2]
[366105641,1750066241826,-490.0,0.00016438,2]
[366105642,1750066241836,-490.0,0.00016438,2]
[366105643,1750066241848,-490.0,0.00016438,2]
[366105644,1750066241857,-559.79,0.00016438,2]
[366105645,1750066241867,-490.0,0.00016438,2]
[366105646,1750066241877,-493.0,0.00016438,2]
[366105647,1750066241886,-515.12,0.00016438,2]
[366105648,1750066241896,-984.52,0.00016438,2]
[366105649,1750066241906,-793.29,0.00016438,2]
[366105650,1750066241915,-1630.37,0.00016438,2]
[366105651,1750066241925,-813.82,0.00016438,2]
[366105652,1750066241935,-490.0,0.00016438,2]
[366105653,1750066241945,-623.27005941,0.00016438,2]
[366105654,1750066241955,-705.24,0.00016438,2]
[366105655,1750066241964,-490.0,0.00016438,2]
[366105656,1750066241974,-490.0,0.00016438,2]
[366105657,1750066241983,-946.26,0.00016438,2]
[366105658,1750066241993,-490.0,0.00016438,2]
[366105659,1750066242003,-490.0,0.00016438,2]
[366105660,1750066242013,-882.31,0.00016438,2]
[366105661,1750066242023,-490.0,0.00016438,2]
[366105662,1750066242033,-490.0,0.00016438,2]
[366105663,1750066242043,-1816.16,0.00016438,2]
[366105664,1750066242053,-557.6,0.00016438,2]
[366105665,1750066242062,-576.09,0.00016438,2]
[366105666,1750066242073,-490.0,0.00016438,2]
[366105667,1750066242083,-490.0,0.00016438,2]
[366105668,1750066242093,-490.0,0.00016438,2]
[366105669,1750066242102,-490.0,0.00016438,2]
[366105670,1750066242113,-490.0,0.00016438,2]
[366105671,1750066242122,-843.37,0.00016438,2]
[366105672,1750066242132,-504.97,0.00016438,2]
[366105673,1750066242141,-490.0,0.00016438,2]
[366105674,1750066242151,-1056.08,0.00016438,2]
[366105675,1750066242161,-490.0,0.00016438,2]
[366105676,1750066242171,-1383.94,0.00016438,2]
[366105677,1750066242181,-490.0,0.00016438,2]
[366105678,1750066242191,-511.93,0.00016438,2]
[366105679,1750066242201,-490.0,0.00016438,2]
[366105680,1750066242210,-490.0,0.00016438,2]
[366105681,1750066242220,-677.62,0.00016438,2]
[366105682,1750066242229,-490.0,0.00016438,2]
[366105683,1750066242239,-628.43,0.00016438,2]
[366105684,1750066242249,-500.47,0.00016438,2]
[366105685,1750066242259,-543.71,0.00016438,2]
[366105686,1750066242268,-960.46,0.00016438,2]
[366105687,1750066242277,-490.0,0.00016438,2]
[366105688,1750066242287,-490.0,0.00016438,2]
[366105689,1750066242296,-301.40794931,0.00016438,2]
[366105690,1750066242306,-490.0,0.00016438,2]
[366105691,1750066242316,-1401.62,0.00016438,2]
[366105692,1750066242325,-530.14,0.00016438,2]
[366105693,1750066242335,-490.0,0.00016438,2]
[366105694,1750066242346,-490.0,0.00016438,2]
[366105695,1750066242356,-490.0,0.00016438,2]
[366105696,1750066242366,-934.55,0.00016438,2]
[366105697,1750066242376,-822.05,0.00016438,2]
[366105698,1750066242385,-490.0,0.00016438,2]
[366105699,1750066242394,-490.0,0.00016438,2]
[366105700,1750066242404,-490.0,0.00016438,2]
[366105701,1750066242414,-1370.96,0.00016438,2]
[366105702,1750066242424,-864.03,0.00016438,2]
[366105703,1750066242434,-493.58,0.00016438,2]
[366105704,1750066242443,-861.98,0.00016438,2]
[366105705,1750066242452,-490.0,0.00016438,2]
[366105706,1750066242462,-490.0,0.00016438,2]
[366105707,1750066242471,-490.0,0.00016438,2]
[366105708,1750066242481,-490.0,0.00016438,2]
[366105709,1750066242490,-1280.69,0.00016438,2]
[366105711,1750066242500,-490.0,0.00016438,2]
[366105712,1750066242510,-1418.52,0.00016438,2]
[366105713,1750066242519,-490.0,0.00016438,2]
[366105715,1750066242528,-490.0,0.00016438,2]
[366105716,1750066242537,-490.0,0.00016438,2]
[366105717,1750066242546,-490.0,0.00016438,2]
[366105718,1750066242555,-514.92,0.00016438,2]
[366105719,1750066242565,-490.0,0.00016438,2]
[366105720,1750066242575,-490.0,0.00016438,2]
[366105721,1750066242585,-666.14,0.00016438,2]
[366105722,1750066242594,-564.88,0.00016438,2]
[366105723,1750066242603,-490.0,0.00016438,2]
[366105724,1750066242614,-490.0,0.00016438,2]
[366105725,1750066242623,-490.0,0.00016438,2]
[366105726,1750066242632,-881.26,0.00016438,2]
[366105727,1750066242642,-490.0,0.00016438,2]
[366105728,1750066242651,-490.0,0.00016438,2]
[366105729,1750066242661,-490.0,0.00016438,2]
[366105730,1750066242671,-896.36,0.00016438,2]
[366105731,1750066242680,-595.11,0.00016438,2]
[366105732,1750066242694,-490.0,0.00016438,2]
[366105733,1750066242704,-490.0,0.00016438,2]
[366105734,1750066242714,-490.0,0.00016438,2]
[366105735,1750066242724,-490.0,0.00016438,2]
[366105736,1750066242733,-1530.56,0.00016438,2]
[366105737,1750066242743,-490.0,0.00016438,2]
[366105738,1750066242752,-490.0,0.00016438,2]
[366105739,1750066242762,-788.57,0.00016438,2]
[366105740,1750066242772,-490.0,0.00016438,2]
[366105741,1750066242781,-490.0,0.00016438,2]
[366105742,1750066242791,-490.0,0.00016438,2]
[366105743,1750066242800,-975.33,0.00016438,2]
[366105744,1750066242810,-490.0,0.00016438,2]
[366105745,1750066242819,-490.0,0.00016438,2]
[366105746,1750066242828,-883.43,0.00016438,2]
[366105747,1750066242838,-490.0,0.00016438,2]
[366105748,1750066242848,-490.0,0.00016438,2]
[366105749,1750066242857,-1099.08,0.00016438,2]
[366105750,1750066242868,-490.0,0.00016438,2]
[366105751,1750066242877,-875.58,0.00016438,2]
[366105752,1750066242887,-2093.48,0.00016438,2]
[366105753,1750066242896,-1026.18,0.00016438,2]
[366105754,1750066242906,-579.25,0.00016438,2]
[366105755,1750066242915,-490.0,0.00016438,2]
[366105756,1750066242925,-523.79,0.00016438,2]
[366105757,1750066242935,-1103.08,0.00016438,2]
[366105759,1750066242944,-490.0,0.00016438,2]
[366105760,1750066242954,-1726.36,0.00016438,2]
[366105761,1750066242964,-490.0,0.00016438,2]
[366105762,1750066242974,-490.0,0.00016438,2]
[366105763,1750066242983,-1107.7,0.00016438,2]
[366105765,1750066242993,-490.0,0.00016438,2]
[366105767,1750066243003,-1238.34,0.00016438,2]
[366105768,1750066243013,-490.0,0.00016438,2]
[366105769,1750066243023,-510.9,0.00016438,2]
[366105770,1750066243032,-490.0,0.00016438,2]
[366105772,1750066243042,-490.0,0.00016438,2]
[366105774,1750066243051,-1302.9,0.00016438,2]
[366105775,1750066243061,-490.0,0.00016438,2]
[366105776,1750066243071,-490.0,0.00016438,2]
[366105777,1750066243080,-687.89,0.00016438,2]
[366105778,1750066243089,-490.0,0.00016438,2]
[366105779,1750066243100,-1031.3,0.00016438,2]
[366105780,1750066243109,-490.0,0.00016438,2]
[366105781,1750066243119,-1115.26,0.00016438,2]
[366105782,1750066243129,-742.11,0.00016438,2]
[366105783,1750066243138,-490.0,0.00016438,2]
[366105785,1750066243149,-490.0,0.00016438,2]
[366105786,1750066243158,-490.0,0.00016438,2]
[366105788,1750066243168,-490.0,0.00016438,2]
[366105789,1750066243177,-926.6,0.00016438,2]
[366105790,1750066243187,-677.25,0.00016438,2]
[366105791,1750066243197,-1233.07,0.00016438,2]
[366105792,1750066243206,-646.75,0.00016438,2]
[366105793,1750066243216,-490.0,0.00016438,2]
[366105794,1750066243225,-490.0,0.00016438,2]
[366105795,1750066243235,-964.8,0.00016438,2]
[366105796,1750066243245,-490.0,0.00016438,2]
[366105797,1750066243256,-490.0,0.00016438,2]
[366105798,1750066243265,-1293.72,0.00016438,2]
[366105799,1750066243275,-493.9,0.00016438,2]
[366105800,1750066243284,-571.15,0.00016438,2]
[366105801,1750066243294,-726.85,0.00016438,2]
[366105802,1750066243305,-586.76,0.00016438,2]
[366105803,1750066243314,-490.0,0.00016438,2]
[366105804,1750066243324,-1539.65,0.00016438,2]
[366105805,1750066243333,-1490.37,0.00016438,2]
[366105806,1750066243342,-490.0,0.00016438,2]
[366105807,1750066243352,-490.0,0.00016438,2]
[366105808,1750066243362,-490.0,0.00016438,2]
[366105809,1750066243372,-736.42,0.00016438,2]
[366105810,1750066243383,-738.8,0.00016438,2]
[366105811,1750066243393,-490.0,0.00016438,2]
[366105812,1750066243404,-1932.12,0.00016438,2]
[366105813,1750066243414,-490.0,0.00016438,2]
[366105814,1750066243425,-508.95,0.00016438,2]
[366105815,1750066243435,-1150.68,0.00016438,2]
[366105816,1750066243445,-521.82,0.00016438,2]
[366105817,1750066243455,-490.0,0.00016438,2]
[366105818,1750066243465,-490.0,0.00016438,2]
[366105819,1750066243475,-490.0,0.00016438,2]
[366105820,1750066243484,-242.8043313,0.00016438,2]
[366105821,1750066243495,-490.0,0.00016438,2]
[366105822,1750066243504,-610.24,0.00016438,2]
[366105823,1750066243514,-1663.59,0.00016438,2]
[366105824,1750066243525,-1392.46,0.00016438,2]
[366105825,1750066243535,-490.0,0.00016438,2]
[366105826,1750066243545,-1688.33,0.00016438,2]
[366105827,1750066243555,-1169.98,0.00016438,2]
[366105828,1750066243565,-490.0,0.00016438,2]
[366105829,1750066243575,-490.0,0.00016438,2]
[366105830,1750066243586,-1762.49,0.00016438,2]
[366105831,1750066243596,-524.03,0.00016438,2]
[366105832,1750066243607,-1026.28,0.00016438,2]
[366105833,1750066243617,-643.76,0.00016438,2]
[366105834,1750066243627,-202.36911417,0.00016438,2]
[366105835,1750066243638,-1591.52,0.00016438,2]
[366105836,1750066243648,-1018.62,0.00016438,2]
[366105837,1750066243659,-490.0,0.00016438,2]
[366105838,1750066243669,-1602.95,0.00016438,2]
[366105839,1750066243680,-3415.17,0.00016438,2]
[366105840,1750066243691,-1134.4,0.00016438,2]
[366105841,1750066243704,-5111.78,0.00016438,2]
[366105842,1750066243714,-490.0,0.00016438,2]
[366105843,1750066243725,-592.78,0.00016438,2]
[366105844,1750066243735,-1251.84,0.00016438,2]
[366105845,1750066243745,-490.0,0.00016438,2]
[366105846,1750066243755,-490.0,0.00016438,2]
[366105847,1750066243766,-490.0,0.00016438,2]
[366105848,1750066243778,-875.2,0.00016438,2]
[366105849,1750066243795,-1318.63,0.00016438,2]
[366105850,1750066243807,-490.0,0.00016438,2]
[366105851,1750066243817,-490.0,0.00016438,2]
[366105852,1750066243827,-490.0,0.00016438,2]
[366105853,1750066243837,-490.0,0.00016438,2]
[366105854,1750066243848,-992.13,0.00016438,2]
[366105855,1750066243858,-2225.71,0.00016438,2]
[366105856,1750066243869,-896.3,0.00016438,2]
[366105857,1750066243879,-1084.82,0.00016438,2]
[366105858,1750066243889,-953.16,0.00016438,2]
[366105859,1750066243899,-490.0,0.00016438,2]
[366105860,1750066243909,-5990.51,0.00016438,2]
[366105861,1750066243919,-3794.04,0.00016438,2]
[366105862,1750066243929,-490.0,0.00016438,2]
[366105863,1750066243939,-1761.78,0.00016438,2]
[366105864,1750066243949,-490.0,0.00016438,2]
[366105865,1750066243958,-490.0,0.00016438,2]
[366105866,1750066243968,-816.04,0.00016438,2]
[366105867,1750066243979,-1350.79,0.00016438,2]
[366105868,1750066243989,-490.0,0.00016438,2]
[366105869,1750066244000,-1448.17,0.00016438,2]
[366105870,1750066244011,-1678.96,0.00016438,2]
[366105871,1750066244021,-1196.06691087,0.00016438,2]
[366105872,1750066244565,-6998.91504214,0.00016438,2]
[366105874,1750066245612,-678.991629,0.00016438,2]
[366105875,1750066245634,-1467.98596892,0.00016438,2]
[366105876,1750066245646,-2409.33409,0.00016438,2]
[366105877,1750066245668,-3463.40635907,0.00016438,2]
[366105878,1750066245678,-810.54,0.00016438,2]
[366105879,1750066245688,-516.89,0.00016438,2]
[366105880,1750066245702,-1901.71087201,0.00016438,2]
[366105881,1750066245714,-1100.01912799,0.00016438,2]
[366105882,1750066245724,-490.0,0.00016438,2]
[366105883,1750066245734,-774.59,0.00016438,2]
[366105884,1750066245745,-86.75585541,0.00016438,2]
[366105885,1750066245757,-549.31414459,0.00016438,2]
[366105886,1750066245768,-7083.81,0.00016438,2]
[366105887,1750066245778,-879.38,0.00016438,2]
[366105888,1750066245790,-1216.72,0.00016438,2]
[366105889,1750066245800,-1242.77,0.00016438,2]
[366105890,1750066245809,-795.88,0.00016438,2]
[366105891,1750066245819,-490.0,0.00016438,2]
[366105892,1750066245829,-413.37912754,0.00016438,2]
[366105893,1750066245838,-1630.74672787,0.00016438,2]
[366105894,1750066245850,-478.44327213,0.00016438,2]
[366105895,1750066245860,-36.76672787,0.00016438,2]
[366105896,1750066245873,-2884.98327213,0.00016438,2]
[366105897,1750066245883,-1472.43,0.00016438,2]
[366105898,1750066245893,-1236.54,0.00016438,2]
[366105899,1750066245903,-490.0,0.00016438,2]
[366105900,1750066245913,-572.12,0.00016438,2]
[366105901,1750066245923,-2851.4,0.00016438,2]
[366105902,1750066245933,-491.68779249,0.00016438,2]
[366105903,1750066245944,-490.0,0.00016438,2]
[366105904,1750066245954,-449.31006544,0.00016438,2]
[366105905,1750066245964,-1315.52,0.00016438,2]
[366105906,1750066245975,-4686.87,0.00016438,2]
[366105907,1750066245986,-490.0,0.00016438,2]
[366105908,1750066245996,-2221.37,0.00016438,2]
[366105909,1750066246005,-490.0,0.00016438,2]
[366105910,1750066246015,-495.66,0.00016438,2]
[366105911,1750066246024,-499.64,0.00016438,2]
[366105912,1750066246035,-1169.65,0.00016438,2]
[366105913,1750066246045,-490.0,0.00016438,2]
[366105914,1750066246057,-2043.34,0.00016438,2]
[366105915,1750066246068,-490.0,0.00016438,2]
[366105916,1750066246077,-1103.47531133,0.00016438,2]
[366105917,1750066246090,-263.27468867,0.00016438,2]
[366105918,1750066246099,-4538.37748195,0.00016438,2]
[366105919,1750066246111,-3789.59251805,0.00016438,2]
[366105920,1750066246121,-774.05,0.00016438,2]
[366105921,1750066246131,-490.0,0.00016438,2]
[366105922,1750066246142,-1123.54454813,0.00016438,2]
[366105923,1750066246245,-458.475,0.00016438,2]
[366105924,1750066246257,-4252.41494104,0.00016438,2]
[366105925,1750066246297,-8138.61551083,0.00016438,2]
[366105926,1750066246307,-4029.25,0.00016438,2]
[366105927,1750066246316,-1060.75,0.00016438,2]
[366105928,1750066246326,-2504.54,0.00016438,2]
[366105929,1750066246336,-7388.3,0.00016438,2]
[366105930,1750066246346,-490.0,0.00016438,2]
[366105931,1750066246356,-3961.87,0.00016438,2]
[366105932,1750066246366,-490.0,0.00016438,2]
[366105933,1750066246377,-3809.77,0.00016438,2]
[366105934,1750066246387,-490.0,0.00016438,2]
[366105935,1750066246398,-3902.67,0.00016438,2]
[366105936,1750066246408,-4364.95,0.00016438,2]
[366105937,1750066246418,-490.0,0.00016438,2]
[366105938,1750066246427,-1826.31,0.00016438,2]
[366105939,1750066246437,-490.0,0.00016438,2]
[366105940,1750066246447,-1374.24,0.00016438,2]
[366105941,1750066246457,-963.38,0.00016438,2]
[366105942,1750066246466,-1030.75,0.00016438,2]
[366105943,1750066246475,-490.0,0.00016438,2]
[366105944,1750066246485,-490.0,0.00016438,2]
[366105945,1750066246495,-924.76,0.00016438,2]
[366105946,1750066246504,-516.75,0.00016438,2]
[366105947,1750066246514,-1354.45,0.00016438,2]
[366105948,1750066246523,-490.0,0.00016438,2]
[366105949,1750066246533,-2143.93,0.00016438,2]
[366105950,1750066246544,-490.0,0.00016438,2]
[366105951,1750066246554,-1200.81,0.00016438,2]
[366105952,1750066246564,-698.17,0.00016438,2]
[366105953,1750066246574,-1641.74,0.00016438,2]
[366105954,1750066246584,-3565.12,0.00016438,2]
[366105955,1750066246594,-1614.75,0.00016438,2]
[366105956,1750066246605,-1437.13,0.00016438,2]
[366105957,1750066246615,-1979.05,0.00016438,2]
[366105958,1750066246625,-490.0,0.00016438,2]
[366105959,1750066246635,-1674.09,0.00016438,2]
[366105960,1750066246645,-1852.78,0.00016438,2]
[366105961,1750066246654,-490.0,0.00016438,2]
[366105962,1750066246664,-526.84,0.00016438,2]
[366105963,1750066246674,-717.77,0.00016438,2]
[366105964,1750066246684,-1182.04,0.00016438,2]
[366105965,1750066246698,-490.0,0.00016438,2]
[366105966,1750066246709,-1570.19,0.00016438,2]
[366105967,1750066246719,-1116.86,0.00016438,2]
[366105968,1750066246729,-490.0,0.00016438,2]
[366105969,1750066246739,-1980.67,0.00016438,2]
[366105970,1750066246749,-900.54,0.00016438,2]
[366105971,1750066246759,-3436.59,0.00016438,2]
[366105972,1750066246769,-490.0,0.00016438,2]
[366105973,1750066246779,-1147.35,0.00016438,2]
[366105974,1750066246789,-737.14,0.00016438,2]
[366105975,1750066246801,-490.0,0.00016438,2]
[366105976,1750066246811,-688.13,0.00016438,2]
[366105977,1750066246822,-490.0,0.00016438,2]
[366105978,1750066246832,-2153.47,0.00016438,2]
[366105979,1750066246842,-490.0,0.00016438,2]
[366105980,1750066246852,-490.0,0.00016438,2]
[366105981,1750066246862,-1997.0,0.00016438,2]
[366105982,1750066246873,-21051.83,0.00016438,2]
[366105983,1750066246883,-500.0,0.00016438,2]
[366105984,1750066246893,-500.0,0.00016438,2]
[366105985,1750066246903,-1145.47,0.00016438,2]
[366105986,1750066246913,-490.0,0.00016438,2]
[366105987,1750066246923,-839.57,0.00016438,2]
[366105988,1750066246932,-926.29,0.00016438,2]
[366105989,1750066246942,-490.0,0.00016438,2]
[366105990,1750066246952,-2312.55,0.00016438,2]
[366105991,1750066246963,-1389.01,0.00016438,2]
[366105992,1750066246974,-6040.02,0.00016438,2]
[366105993,1750066246983,-2648.72446724,0.00016438,2]
[366105994,1750066247966,-2950.19553276,0.00016438,2]
[366105995,1750066247977,-580.16,0.00016438,2]
[366105996,1750066247987,-490.0,0.00016438,2]
[366105997,1750066247998,-515.64,0.00016438,2]
[366105998,1750066248008,-522.78,0.00016438,2]
[366105999,1750066248018,-490.0,0.00016438,2]
[366106000,1750066248028,-1599.47,0.00016438,2]
[366106001,1750066248039,-3303.0,0.00016438,2]
[366106002,1750066248049,-951.76,0.00016438,2]
[366106003,1750066248060,-867.17,0.00016438,2]
[366106004,1750066248070,-300.0,0.00016438,2]
[366106005,1750066248080,-865.69,0.00016438,2]
[366106006,1750066248090,-1742.77,0.00016438,2]
[366106007,1750066248100,-1449.0356824,0.00016438,2]
[366106008,1750066248113,-229.9543176,0.00016438,2]
[366106009,1750066248124,-627.35167394,0.00016438,2]
[366106010,1750066248137,-939.02832606,0.00016438,2]
[366106011,1750066248147,-490.0,0.00016438,2]
[366106012,1750066248157,-718.25767394,0.00016438,2]
[366106013,1750066248174,-175.19232606,0.00016438,2]
[366106014,1750066248184,-824.80767394,0.00016438,2]
[366106015,1750066248204,-914.44232606,0.00016438,2]
[366106016,1750066248215,-490.0,0.00016438,2]
[366106017,1750066248225,-703.22,0.00016438,2]
[366106018,1750066248235,-2180.53,0.00016438,2]
[366106019,1750066248245,-521.34,0.00016438,2]
[366106020,1750066248255,-490.0,0.00016438,2]
[366106021,1750066248265,-1033.88,0.00016438,2]
[366106022,1750066248275,-736.17,0.00016438,2]
[366106023,1750066248285,-1454.64,0.00016438,2]
[366106024,1750066248295,-1055.11,0.00016438,2]
[366106025,1750066248305,-648.84,0.00016438,2]
[366106026,1750066248315,-2038.8,0.00016438,2]
[366106027,1750066248325,-1193.8,0.00016438,2]
[366106028,1750066248335,-2794.73,0.00016438,2]
[366106029,1750066248346,-490.0,0.00016438,2]
[366106030,1750066248356,-1069.28,0.00016438,2]
[366106031,1750066248366,-2157.27,0.00016438,2]
[366106032,1750066248382,-1456.49,0.00016438,2]
[366106033,1750066248392,-490.0,0.00016438,2]
[366106034,1750066248402,-3294.06,0.00016438,2]
[366106035,1750066248414,-6892.85,0.00016438,2]
[366106036,1750066248424,-490.0,0.00016438,2]
[366106037,1750066248434,-490.0,0.00016438,2]
[366106038,1750066248445,-938.66,0.00016438,2]
[366106039,1750066248456,-490.0,0.00016438,2]
[366106040,1750066248467,-1128.79,0.00016438,2]
[366106041,1750066248477,-490.0,0.00016438,2]
[366106042,1750066248487,-1076.95,0.00016438,2]
[366106043,1750066248498,-2370.61,0.00016438,2]
[366106044,1750066248508,-490.0,0.00016438,2]
[366106045,1750066248518,-496.73142014,0.00016438,2]
[366106046,1750066248528,-490.0,0.00016438,2]
[366106047,1750066248538,-490.0,0.00016438,2]
[366106048,1750066248548,-764.81,0.00016438,2]
[366106049,1750066248558,-1158.32,0.00016438,2]
[366106050,1750066248568,-490.0,0.00016438,2]
[366106051,1750066248578,-1210.71,0.00016438,2]
[366106052,1750066248588,-1204.48,0.00016438,2]
[366106053,1750066248598,-490.0,0.00016438,2]
[366106054,1750066248608,-1367.67,0.00016438,2]
[366106055,1750066248620,-500.0,0.00016438,2]
[366106056,1750066248630,-500.0,0.00016438,2]
[366106057,1750066248641,-765.75,0.00016438,2]
[366106058,1750066248652,-9595.54,0.00016438,2]
[366106059,1750066248662,-3263.3,0.00016438,2]
[366106060,1750066248672,-586.87,0.00016438,2]
[366106061,1750066248683,-490.0,0.00016438,2]
[366106062,1750066248698,-731.74,0.00016438,2]
[366106063,1750066248710,-490.0,0.00016438,2]
[366106064,1750066248721,-490.0,0.00016438,2]
[366106065,1750066248732,-1194.1,0.00016438,2]
[366106066,1750066248743,-1585.02,0.00016438,2]
[366106067,1750066248754,-3563.97,0.00016438,2]
[366106068,1750066248765,-792.7,0.00016438,2]
[366106069,1750066248776,-501.10220803,0.00016438,2]
[366106070,1750066248787,-3074.7739289,0.00016438,2]
[366106071,1750066248802,-113.8760711,0.00016438,2]
[366106072,1750066248824,-490.0,0.00016438,2]
[366106073,1750066248838,-713.6,0.00016438,2]
[366106074,1750066248849,-3599.44,0.00016438,2]
[366106075,1750066248860,-490.0,0.00016438,2]
[366106076,1750066248873,-622.33,0.00016438,2]
[366106077,1750066248883,-1039.13,0.00016438,2]
[366106078,1750066248893,-490.0,0.00016438,2]
[366106079,1750066248905,-5461.28,0.00016438,2]
[366106080,1750066248915,-955.56,0.00016438,2]
[366106081,1750066248926,-841.49,0.00016438,2]
[366106082,1750066248936,-490.0,0.00016438,2]
[366106083,1750066248946,-3235.8,0.00016438,2]
[366106084,1750066248957,-837.73,0.00016438,2]
[366106085,1750066248967,-490.0,0.00016438,2]
[366106086,1750066248978,-1105.6,0.00016438,2]